[Event "Titled Tuesday Blitz March 22 Early 2022"]
[White "Danilenko, Dmitriy"]
[Black "Lou, Yiping"]
[WhiteFideId "14120844"]
[BlackFideId "8603928"]
[WhiteElo "2606"]
[BlackElo "2412"]
[Result "1/2-1/2"]
[Round "05"]
[TimeControl "180+1"]
[Date "2022.03.22"]
[WhiteClock "0:00:28"]
[BlackClock "0:00:58"]

1. e4 {[%clk 0:02:35]}  e5 {[%clk 0:02:56]} 2. Nf3 {[%clk 0:02:34]}  Nc6 {[%clk 0:02:56]} 3. Nc3 {[%clk 0:02:35]}  Nf6 {[%clk 0:02:54]} 4. a3 {[%clk 0:02:35]}  g6 {[%clk 0:02:48]} 5. d4 {[%clk 0:02:35]}  exd4 {[%clk 0:02:47]} 6. Nxd4 {[%clk 0:02:36]}  Bg7 {[%clk 0:02:40]} 7. Nxc6 {[%clk 0:02:36]}  bxc6 {[%clk 0:02:38]} 8. Bc4 {[%clk 0:02:30]}  O-O {[%clk 0:02:24]} 9. O-O {[%clk 0:02:29]}  Re8 {[%clk 0:02:21]} 10. Re1 {[%clk 0:02:28]}  d5 {[%clk 0:02:15]} 11. exd5 {[%clk 0:02:21]}  Rxe1+ {[%clk 0:02:16]} 12. Qxe1 {[%clk 0:02:21]}  cxd5 {[%clk 0:02:16]} 13. Bd3 {[%clk 0:02:01]}  Bb7 {[%clk 0:02:13]} 14. Bg5 {[%clk 0:01:54]}  Qd7 {[%clk 0:02:12]} 15. Qd2 {[%clk 0:01:46]}  Re8 {[%clk 0:02:05]} 16. Re1 {[%clk 0:01:46]}  Rxe1+ {[%clk 0:01:48]} 17. Qxe1 {[%clk 0:01:46]}  d4 {[%clk 0:01:46]} 18. Bxf6 {[%clk 0:01:44]}  Bxf6 {[%clk 0:01:42]} 19. Ne4 {[%clk 0:01:45]}  Bxe4 {[%clk 0:01:42]} 20. Qxe4 {[%clk 0:01:40]}  Kg7 {[%clk 0:01:41]} 21. Kf1 {[%clk 0:01:36]}  c5 {[%clk 0:01:37]} 22. b3 {[%clk 0:01:25]}  Qe7 {[%clk 0:01:33]} 23. Ke2 {[%clk 0:01:23]}  Qxe4+ {[%clk 0:01:32]} 24. Bxe4 {[%clk 0:01:23]}  Bg5 {[%clk 0:01:21]} 25. Kd3 {[%clk 0:01:19]}  Bc1 {[%clk 0:01:20]} 26. a4 {[%clk 0:01:16]}  a5 {[%clk 0:01:18]} 27. Kc4 {[%clk 0:01:12]}  Ba3 {[%clk 0:01:18]} 28. Kd5 {[%clk 0:01:08]}  Bb4 {[%clk 0:01:17]} 29. Bd3 {[%clk 0:01:07]}  Kf6 {[%clk 0:01:16]} 30. f3 {[%clk 0:01:06]}  Ke7 {[%clk 0:01:15]} 31. g3 {[%clk 0:01:03]}  Kf6 {[%clk 0:01:14]} 32. h3 {[%clk 0:01:03]}  Kg7 {[%clk 0:01:12]} 33. f4 {[%clk 0:01:03]}  Kf6 {[%clk 0:01:13]} 34. g4 {[%clk 0:01:04]}  h6 {[%clk 0:01:12]} 35. Ke4 {[%clk 0:01:03]}  g5 {[%clk 0:01:11]} 36. Bc4 {[%clk 0:00:59]}  Bd2 {[%clk 0:01:07]} 37. f5 {[%clk 0:00:57]}  Bb4 {[%clk 0:01:07]} 38. Kd5 {[%clk 0:00:57]}  Ba3 {[%clk 0:01:06]} 39. Kd6 {[%clk 0:00:56]}  Kg7 {[%clk 0:01:06]} 40. Ke7 {[%clk 0:00:54]}  f6 {[%clk 0:01:06]} 41. Ke6 {[%clk 0:00:53]}  Bb4 {[%clk 0:01:06]} 42. Bd3 {[%clk 0:00:54]}  Ba3 {[%clk 0:01:06]} 43. Kd5 {[%clk 0:00:54]}  Bb4 {[%clk 0:01:07]} 44. Be4 {[%clk 0:00:55]}  Ba3 {[%clk 0:01:07]} 45. Kc4 {[%clk 0:00:55]}  Bb4 {[%clk 0:01:07]} 46. Kb5 {[%clk 0:00:56]}  Kf7 {[%clk 0:01:07]} 47. Kc6 {[%clk 0:00:56]}  Ke7 {[%clk 0:01:07]} 48. Kd5 {[%clk 0:00:57]}  Ba3 {[%clk 0:01:07]} 49. Kc4 {[%clk 0:00:57]}  Bb4 {[%clk 0:01:08]} 50. Bd5 {[%clk 0:00:58]}  Ba3 {[%clk 0:01:08]} 51. Bf3 {[%clk 0:00:58]}  Kd6 {[%clk 0:01:07]} 52. c3 {[%clk 0:00:49]}  Ke5 {[%clk 0:01:05]} 53. cxd4+ {[%clk 0:00:47]}  cxd4 {[%clk 0:01:04]} 54. Kd3 {[%clk 0:00:41]}  Bb4 {[%clk 0:01:01]} 55. Bg2 {[%clk 0:00:28]}  Bc3 {[%clk 0:00:58]} 56. Bf1 {[%clk 0:00:28]} 1/2-1/2


[Site "https://www.chess.com"]

[Event "Titled Tuesday Blitz March 22 Early 2022"]
[White "Dev, Shah"]
[Black "Stanisz, Patryk"]
[WhiteFideId "35019058"]
[BlackFideId "1123106"]
[WhiteElo "2075"]
[BlackElo "1876"]
[Result "1-0"]
[Round "05"]
[TimeControl "180+1"]
[Date "2022.03.22"]
[WhiteClock "0:01:28"]
[BlackClock "0:00:03"]

1. d4 {[%clk 0:03:00]}  f5 {[%clk 0:02:58]} 2. g3 {[%clk 0:02:59]}  Nf6 {[%clk 0:02:58]} 3. Bg2 {[%clk 0:03:00]}  g6 {[%clk 0:02:58]} 4. c4 {[%clk 0:02:59]}  d6 {[%clk 0:02:59]} 5. Nf3 {[%clk 0:02:59]}  Bg7 {[%clk 0:02:59]} 6. O-O {[%clk 0:03:00]}  O-O {[%clk 0:02:58]} 7. Nc3 {[%clk 0:03:00]}  Qe8 {[%clk 0:02:57]} 8. d5 {[%clk 0:03:00]}  a5 {[%clk 0:02:56]} 9. e4 {[%clk 0:02:57]}  fxe4 {[%clk 0:02:52]} 10. Ng5 {[%clk 0:02:57]}  Na6 {[%clk 0:02:43]} 11. Ncxe4 {[%clk 0:02:56]}  Nxe4 {[%clk 0:02:26]} 12. Nxe4 {[%clk 0:02:57]}  Bf5 {[%clk 0:02:26]} 13. Be3 {[%clk 0:02:49]}  c5 {[%clk 0:01:59]} 14. dxc6 {[%clk 0:02:43]}  bxc6 {[%clk 0:01:59]} 15. Qd2 {[%clk 0:02:43]}  Nc7 {[%clk 0:01:47]} 16. Rad1 {[%clk 0:02:41]}  a4 {[%clk 0:01:39]} 17. b3 {[%clk 0:02:40]}  axb3 {[%clk 0:01:37]} 18. axb3 {[%clk 0:02:41]}  Qb8 {[%clk 0:01:07]} 19. Bg5 {[%clk 0:02:29]}  Re8 {[%clk 0:00:59]} 20. Nxd6 {[%clk 0:01:53]}  exd6 {[%clk 0:00:52]} 21. Bxc6 {[%clk 0:01:54]}  Re6 {[%clk 0:00:43]} 22. Bxa8 {[%clk 0:01:50]}  Qxa8 {[%clk 0:00:44]} 23. f3 {[%clk 0:01:40]}  Qa3 {[%clk 0:00:33]} 24. Bf4 {[%clk 0:01:36]}  Qxb3 {[%clk 0:00:24]} 25. Bxd6 {[%clk 0:01:35]}  Ne8 {[%clk 0:00:21]} 26. c5 {[%clk 0:01:33]}  Re3 {[%clk 0:00:14]} 27. Rde1 {[%clk 0:01:28]}  Re2 {[%clk 0:00:03]} 1-0


[Site "https://www.chess.com"]

[Event "Titled Tuesday Blitz March 22 Early 2022"]
[White "Dixit, Nikhil"]
[Black "Shuvalova, Polina"]
[WhiteFideId "5059534"]
[BlackFideId "24171760"]
[WhiteElo "2223"]
[BlackElo "2355"]
[Result "0-1"]
[Round "05"]
[TimeControl "180+1"]
[Date "2022.03.22"]
[WhiteClock "0:00:04"]
[BlackClock "0:00:48"]

1. e4 {[%clk 0:02:56]}  c5 {[%clk 0:02:59]} 2. Nf3 {[%clk 0:02:55]}  d6 {[%clk 0:02:59]} 3. Bb5+ {[%clk 0:02:53]}  Bd7 {[%clk 0:02:59]} 4. Bxd7+ {[%clk 0:02:52]}  Nxd7 {[%clk 0:03:00]} 5. O-O {[%clk 0:02:52]}  Ngf6 {[%clk 0:03:00]} 6. Re1 {[%clk 0:02:48]}  e6 {[%clk 0:02:55]} 7. c3 {[%clk 0:02:46]}  Be7 {[%clk 0:02:54]} 8. d4 {[%clk 0:02:40]}  cxd4 {[%clk 0:02:55]} 9. cxd4 {[%clk 0:02:41]}  d5 {[%clk 0:02:55]} 10. e5 {[%clk 0:02:40]}  Ne4 {[%clk 0:02:56]} 11. Qd3 {[%clk 0:02:37]}  O-O {[%clk 0:02:52]} 12. Nbd2 {[%clk 0:02:19]}  Nxd2 {[%clk 0:02:51]} 13. Bxd2 {[%clk 0:02:20]}  Rc8 {[%clk 0:02:51]} 14. Rac1 {[%clk 0:02:10]}  Nb8 {[%clk 0:02:49]} 15. Rxc8 {[%clk 0:01:53]}  Qxc8 {[%clk 0:02:49]} 16. Rc1 {[%clk 0:01:53]}  Qd7 {[%clk 0:02:49]} 17. Bg5 {[%clk 0:01:44]}  Nc6 {[%clk 0:02:35]} 18. Bxe7 {[%clk 0:01:42]}  Qxe7 {[%clk 0:02:36]} 19. a3 {[%clk 0:01:27]}  h6 {[%clk 0:02:28]} 20. b4 {[%clk 0:01:19]}  a6 {[%clk 0:02:28]} 21. Nd2 {[%clk 0:01:14]}  f6 {[%clk 0:02:19]} 22. exf6 {[%clk 0:01:13]}  Qxf6 {[%clk 0:02:19]} 23. Nf3 {[%clk 0:01:12]}  Qf5 {[%clk 0:02:04]} 24. Qxf5 {[%clk 0:00:57]}  Rxf5 {[%clk 0:02:03]} 25. Kf1 {[%clk 0:00:58]}  Rf4 {[%clk 0:02:03]} 26. Rd1 {[%clk 0:00:55]}  g5 {[%clk 0:01:57]} 27. h3 {[%clk 0:00:49]}  Kf7 {[%clk 0:01:56]} 28. Ke2 {[%clk 0:00:41]}  Kf6 {[%clk 0:01:55]} 29. Ke3 {[%clk 0:00:40]}  Re4+ {[%clk 0:01:51]} 30. Kd3 {[%clk 0:00:39]}  h5 {[%clk 0:01:49]} 31. Kc3 {[%clk 0:00:27]}  g4 {[%clk 0:01:41]} 32. hxg4 {[%clk 0:00:25]}  hxg4 {[%clk 0:01:42]} 33. Nh2 {[%clk 0:00:17]}  Kg5 {[%clk 0:01:35]} 34. Nf1 {[%clk 0:00:08]}  Re2 {[%clk 0:01:28]} 35. Rd2 {[%clk 0:00:08]}  Re1 {[%clk 0:01:28]} 36. Ne3 {[%clk 0:00:09]}  Ra1 {[%clk 0:01:23]} 37. Kb2 {[%clk 0:00:07]}  Rg1 {[%clk 0:01:23]} 38. Kc3 {[%clk 0:00:06]}  Kf4 {[%clk 0:01:18]} 39. Nc2 {[%clk 0:00:02]}  Rxg2 {[%clk 0:01:15]} 40. Ne1 {[%clk 0:00:02]}  Rg1 {[%clk 0:01:15]} 41. Nd3+ {[%clk 0:00:03]}  Kf5 {[%clk 0:01:15]} 42. Nc5 {[%clk 0:00:04]}  Na7 {[%clk 0:01:03]} 43. Nxb7 {[%clk 0:00:03]}  Nb5+ {[%clk 0:01:04]} 44. Kd3 {[%clk 0:00:04]}  Nxa3 {[%clk 0:01:02]} 45. Nc5 {[%clk 0:00:05]}  Nc4 {[%clk 0:01:02]} 46. Ra2 {[%clk 0:00:05]}  Rd1+ {[%clk 0:01:01]} 47. Ke2 {[%clk 0:00:05]}  Rxd4 {[%clk 0:01:01]} 48. Nxa6 {[%clk 0:00:06]}  Re4+ {[%clk 0:00:57]} 49. Kf1 {[%clk 0:00:06]}  Nd6 {[%clk 0:00:57]} 50. Nc5 {[%clk 0:00:06]}  Rxb4 {[%clk 0:00:56]} 51. Ra6 {[%clk 0:00:06]}  Rc4 {[%clk 0:00:49]} 52. Nxe6 {[%clk 0:00:04]}  Kxe6 {[%clk 0:00:48]} 0-1


[Site "https://www.chess.com"]

[Event "Titled Tuesday Blitz March 22 Early 2022"]
[White "Dwilewicz, Katarzyna"]
[Black "Iskusnyh, Sergei"]
[WhiteFideId "1148486"]
[BlackFideId "4120027"]
[WhiteElo "1907"]
[BlackElo "2492"]
[Result "0-1"]
[Round "05"]
[TimeControl "180+1"]
[Date "2022.03.22"]
[WhiteClock "0:00:02"]
[BlackClock "0:00:53"]

1. e4 {[%clk 0:03:00]}  e6 {[%clk 0:02:59]} 2. d4 {[%clk 0:02:57]}  d5 {[%clk 0:02:59]} 3. exd5 {[%clk 0:02:57]}  exd5 {[%clk 0:03:00]} 4. Nf3 {[%clk 0:02:56]}  Nf6 {[%clk 0:02:59]} 5. Bd3 {[%clk 0:02:55]}  c5 {[%clk 0:02:59]} 6. O-O {[%clk 0:02:54]}  Nc6 {[%clk 0:02:58]} 7. Re1+ {[%clk 0:02:51]}  Be7 {[%clk 0:02:58]} 8. dxc5 {[%clk 0:02:50]}  O-O {[%clk 0:02:58]} 9. Bg5 {[%clk 0:02:36]}  Bxc5 {[%clk 0:02:57]} 10. Nbd2 {[%clk 0:02:35]}  h6 {[%clk 0:02:53]} 11. Bh4 {[%clk 0:02:28]}  Bb6 {[%clk 0:02:50]} 12. Nb3 {[%clk 0:02:18]}  Bg4 {[%clk 0:02:49]} 13. h3 {[%clk 0:02:18]}  Bh5 {[%clk 0:02:48]} 14. c3 {[%clk 0:02:12]}  Qd6 {[%clk 0:02:46]} 15. Bc2 {[%clk 0:02:00]}  Rae8 {[%clk 0:02:38]} 16. Qd3 {[%clk 0:01:54]}  Bg6 {[%clk 0:02:37]} 17. Qd2 {[%clk 0:01:48]}  Bxc2 {[%clk 0:02:32]} 18. Qxc2 {[%clk 0:01:47]}  g5 {[%clk 0:02:28]} 19. Nxg5 {[%clk 0:01:31]}  hxg5 {[%clk 0:02:27]} 20. Bxg5 {[%clk 0:01:32]}  Ne4 {[%clk 0:02:26]} 21. Be3 {[%clk 0:01:28]}  Bc7 {[%clk 0:02:19]} 22. g3 {[%clk 0:01:24]}  Nxg3 {[%clk 0:02:18]} 23. fxg3 {[%clk 0:01:24]}  Qxg3+ {[%clk 0:02:18]} 24. Qg2 {[%clk 0:01:19]}  Kh7 {[%clk 0:02:13]} 25. Qxg3 {[%clk 0:01:15]}  Bxg3 {[%clk 0:02:12]} 26. Re2 {[%clk 0:01:15]}  Rg8 {[%clk 0:02:09]} 27. Kh1 {[%clk 0:01:16]}  f5 {[%clk 0:01:55]} 28. Nc1 {[%clk 0:00:45]}  f4 {[%clk 0:01:54]} 29. Bg1 {[%clk 0:00:41]}  f3 {[%clk 0:01:54]} 30. Rxe8 {[%clk 0:00:36]}  Rxe8 {[%clk 0:01:54]} 31. Nd3 {[%clk 0:00:35]}  Ne5 {[%clk 0:01:34]} 32. Nxe5 {[%clk 0:00:33]}  Rxe5 {[%clk 0:01:34]} 33. Rf1 {[%clk 0:00:34]}  Rf5 {[%clk 0:01:34]} 34. Bh2 {[%clk 0:00:30]}  Bh4 {[%clk 0:01:32]} 35. Bb8 {[%clk 0:00:24]}  a6 {[%clk 0:01:30]} 36. Ba7 {[%clk 0:00:23]}  Kg6 {[%clk 0:01:27]} 37. Kg1 {[%clk 0:00:21]}  Kg5 {[%clk 0:01:22]} 38. Bb6 {[%clk 0:00:16]}  Bg3 {[%clk 0:01:20]} 39. Bd8+ {[%clk 0:00:14]}  Kh5 {[%clk 0:01:18]} 40. a3 {[%clk 0:00:12]}  b5 {[%clk 0:01:17]} 41. Be7 {[%clk 0:00:10]}  Rf7 {[%clk 0:01:13]} 42. Bd8 {[%clk 0:00:09]}  Rf8 {[%clk 0:01:08]} 43. Be7 {[%clk 0:00:10]}  Rf5 {[%clk 0:01:08]} 44. Bd8 {[%clk 0:00:09]}  Rf7 {[%clk 0:01:09]} 45. b3 {[%clk 0:00:05]}  Rg7 {[%clk 0:01:01]} 46. Kh1 {[%clk 0:00:04]}  Rf7 {[%clk 0:00:58]} 47. Kg1 {[%clk 0:00:04]}  Be5 {[%clk 0:00:57]} 48. Ba5 {[%clk 0:00:01]}  Kh4 {[%clk 0:00:55]} 49. Kh1 {[%clk 0:00:01]}  Kxh3 {[%clk 0:00:54]} 50. c4 {[%clk 0:00:01]}  dxc4 {[%clk 0:00:54]} 51. bxc4 {[%clk 0:00:02]}  bxc4 {[%clk 0:00:54]} 52. Bd2 {[%clk 0:00:02]}  Bd4 {[%clk 0:00:53]} 0-1


[Site "https://www.chess.com"]

[Event "Titled Tuesday Blitz March 22 Early 2022"]
[White "Estrada Nieto, Julian"]
[Black "Nenezic, Marko"]
[WhiteFideId "5101018"]
[BlackFideId "912123"]
[WhiteElo "2246"]
[BlackElo "2457"]
[Result "0-1"]
[Round "05"]
[TimeControl "180+1"]
[Date "2022.03.22"]
[WhiteClock "0:00:02"]
[BlackClock "0:00:34"]

1. e4 {[%clk 0:02:51]}  c5 {[%clk 0:03:00]} 2. Nf3 {[%clk 0:02:50]}  d6 {[%clk 0:03:00]} 3. d4 {[%clk 0:02:46]}  cxd4 {[%clk 0:03:01]} 4. Qxd4 {[%clk 0:02:47]}  Nf6 {[%clk 0:03:02]} 5. Nc3 {[%clk 0:02:45]}  a6 {[%clk 0:03:01]} 6. Bc4 {[%clk 0:02:44]}  Nc6 {[%clk 0:03:00]} 7. Qd3 {[%clk 0:02:44]}  Bg4 {[%clk 0:02:47]} 8. Bb3 {[%clk 0:02:42]}  e6 {[%clk 0:02:44]} 9. Bf4 {[%clk 0:02:41]}  Bxf3 {[%clk 0:02:39]} 10. Qxf3 {[%clk 0:02:26]}  Nd4 {[%clk 0:02:39]} 11. Qd3 {[%clk 0:02:25]}  Nxb3 {[%clk 0:02:38]} 12. axb3 {[%clk 0:02:26]}  Qc7 {[%clk 0:02:32]} 13. O-O-O {[%clk 0:02:17]}  O-O-O {[%clk 0:02:31]} 14. Kb1 {[%clk 0:02:01]}  Be7 {[%clk 0:02:27]} 15. f3 {[%clk 0:01:55]}  Kb8 {[%clk 0:02:04]} 16. g4 {[%clk 0:01:49]}  h6 {[%clk 0:01:59]} 17. h4 {[%clk 0:01:46]}  Ka8 {[%clk 0:01:54]} 18. g5 {[%clk 0:01:34]}  Nh5 {[%clk 0:01:54]} 19. Be3 {[%clk 0:01:33]}  b5 {[%clk 0:01:43]} 20. Qd4 {[%clk 0:01:10]}  hxg5 {[%clk 0:01:29]} 21. hxg5 {[%clk 0:01:09]}  g6 {[%clk 0:01:28]} 22. f4 {[%clk 0:01:02]}  Rc8 {[%clk 0:01:23]} 23. f5 {[%clk 0:00:56]}  Rhd8 {[%clk 0:01:20]} 24. fxg6 {[%clk 0:00:47]}  fxg6 {[%clk 0:01:20]} 25. Rd2 {[%clk 0:00:39]}  Rf8 {[%clk 0:01:19]} 26. Na2 {[%clk 0:00:21]}  Qb7 {[%clk 0:01:14]} 27. Nb4 {[%clk 0:00:19]}  Rc5 {[%clk 0:01:09]} 28. Nd3 {[%clk 0:00:17]}  e5 {[%clk 0:00:51]} 29. Qb4 {[%clk 0:00:08]}  Rcc8 {[%clk 0:00:50]} 30. Rc1 {[%clk 0:00:05]}  Rf3 {[%clk 0:00:42]} 31. Bg1 {[%clk 0:00:05]}  Bxg5 {[%clk 0:00:42]} 32. Rdd1 {[%clk 0:00:03]}  Bxc1 {[%clk 0:00:35]} 33. Rxc1 {[%clk 0:00:03]}  Qc6 {[%clk 0:00:35]} 34. Qa3 {[%clk 0:00:02]}  Rxd3 {[%clk 0:00:34]} 0-1


[Site "https://www.chess.com"]

[Event "Titled Tuesday Blitz March 22 Early 2022"]
[White "Fathy, Elameir"]
[Black "Cramling Bellon, Anna"]
[WhiteFideId "10600396"]
[BlackFideId "32009232"]
[WhiteElo "2311"]
[BlackElo "1905"]
[Result "1-0"]
[Round "05"]
[TimeControl "180+1"]
[Date "2022.03.22"]
[WhiteClock "0:00:50"]
[BlackClock "0:00:01"]

1. d4 {[%clk 0:02:29]}  Nf6 {[%clk 0:02:57]} 2. c4 {[%clk 0:02:29]}  e6 {[%clk 0:02:56]} 3. Nf3 {[%clk 0:02:29]}  d5 {[%clk 0:02:56]} 4. g3 {[%clk 0:02:29]}  c6 {[%clk 0:02:48]} 5. Bg2 {[%clk 0:02:26]}  Bb4+ {[%clk 0:02:49]} 6. Bd2 {[%clk 0:02:23]}  Bd6 {[%clk 0:02:47]} 7. Nc3 {[%clk 0:02:17]}  Nbd7 {[%clk 0:02:46]} 8. O-O {[%clk 0:01:58]}  O-O {[%clk 0:02:43]} 9. Bg5 {[%clk 0:01:55]}  Qc7 {[%clk 0:02:36]} 10. Rc1 {[%clk 0:01:53]}  Ne4 {[%clk 0:02:30]} 11. Nxe4 {[%clk 0:01:45]}  dxe4 {[%clk 0:02:30]} 12. Nd2 {[%clk 0:01:46]}  f5 {[%clk 0:02:29]} 13. c5 {[%clk 0:01:46]}  Bxc5 {[%clk 0:01:07]} 14. dxc5 {[%clk 0:01:47]}  h6 {[%clk 0:01:07]} 15. Be7 {[%clk 0:01:43]}  Re8 {[%clk 0:01:00]} 16. Bd6 {[%clk 0:01:43]}  Qa5 {[%clk 0:00:55]} 17. a3 {[%clk 0:01:40]}  b6 {[%clk 0:00:47]} 18. Nc4 {[%clk 0:01:31]}  Qa6 {[%clk 0:00:47]} 19. cxb6 {[%clk 0:01:27]}  axb6 {[%clk 0:00:47]} 20. f3 {[%clk 0:01:23]}  b5 {[%clk 0:00:45]} 21. Ne5 {[%clk 0:01:20]}  Rd8 {[%clk 0:00:37]} 22. Nxc6 {[%clk 0:01:17]}  Qb6+ {[%clk 0:00:26]} 23. Kh1 {[%clk 0:01:16]}  exf3 {[%clk 0:00:12]} 24. Bxf3 {[%clk 0:01:15]}  Re8 {[%clk 0:00:02]} 25. Ne7+ {[%clk 0:01:11]}  Kh8 {[%clk 0:00:01]} 26. Bxa8 {[%clk 0:01:10]}  Bb7+ {[%clk 0:00:01]} 27. Bxb7 {[%clk 0:01:08]}  Qxb7+ {[%clk 0:00:02]} 28. Nc6 {[%clk 0:01:08]}  Nf6 {[%clk 0:00:01]} 29. Qd3 {[%clk 0:01:01]}  Ne4 {[%clk 0:00:02]} 30. Be5 {[%clk 0:00:56]}  Qb6 {[%clk 0:00:01]} 31. Qd4 {[%clk 0:00:52]}  Rc8 {[%clk 0:00:01]} 32. Qxb6 {[%clk 0:00:50]} 1-0


[Site "https://www.chess.com"]

[Event "Titled Tuesday Blitz March 22 Early 2022"]
[White "Fiol, Fabrice"]
[Black "Namitbir Singh Walia"]
[WhiteFideId "611670"]
[BlackFideId "35071068"]
[WhiteElo "2484"]
[BlackElo "1565"]
[Result "0-1"]
[Round "05"]
[TimeControl "180+1"]
[Date "2022.03.22"]
[WhiteClock "0:00:02"]
[BlackClock "0:00:09"]

1. e4 {[%clk 0:03:00]}  c5 {[%clk 0:02:59]} 2. Nf3 {[%clk 0:03:00]}  Nc6 {[%clk 0:02:59]} 3. Bb5 {[%clk 0:03:00]}  g6 {[%clk 0:02:59]} 4. O-O {[%clk 0:03:00]}  Bg7 {[%clk 0:02:58]} 5. c3 {[%clk 0:03:01]}  d5 {[%clk 0:02:51]} 6. exd5 {[%clk 0:02:54]}  Qxd5 {[%clk 0:02:52]} 7. h3 {[%clk 0:02:49]}  Nf6 {[%clk 0:02:49]} 8. Na3 {[%clk 0:02:45]}  O-O {[%clk 0:02:48]} 9. Qb3 {[%clk 0:02:36]}  Qh5 {[%clk 0:02:30]} 10. Nh2 {[%clk 0:02:24]}  Be6 {[%clk 0:02:21]} 11. Qd1 {[%clk 0:02:22]}  Qe5 {[%clk 0:02:01]} 12. Nc4 {[%clk 0:02:14]}  Qc7 {[%clk 0:02:00]} 13. Ne3 {[%clk 0:02:04]}  Rfd8 {[%clk 0:01:50]} 14. Qe2 {[%clk 0:01:25]}  a6 {[%clk 0:01:24]} 15. Bc4 {[%clk 0:01:20]}  Nd5 {[%clk 0:01:12]} 16. Nxd5 {[%clk 0:01:11]}  Bxd5 {[%clk 0:01:13]} 17. Ng4 {[%clk 0:01:11]}  b5 {[%clk 0:01:02]} 18. Bxd5 {[%clk 0:01:08]}  Rxd5 {[%clk 0:01:03]} 19. d3 {[%clk 0:01:09]}  Rad8 {[%clk 0:01:02]} 20. Rd1 {[%clk 0:01:00]}  Qd7 {[%clk 0:00:57]} 21. Be3 {[%clk 0:00:49]}  h5 {[%clk 0:00:52]} 22. Nh2 {[%clk 0:00:44]}  Ne5 {[%clk 0:00:43]} 23. d4 {[%clk 0:00:43]}  Nc6 {[%clk 0:00:42]} 24. Nf3 {[%clk 0:00:41]}  cxd4 {[%clk 0:00:42]} 25. cxd4 {[%clk 0:00:42]}  Nxd4 {[%clk 0:00:42]} 26. Bxd4 {[%clk 0:00:42]}  Bxd4 {[%clk 0:00:43]} 27. Nxd4 {[%clk 0:00:36]}  Rxd4 {[%clk 0:00:43]} 28. Rxd4 {[%clk 0:00:36]}  Qxd4 {[%clk 0:00:43]} 29. Qxe7 {[%clk 0:00:36]}  Rc8 {[%clk 0:00:34]} 30. Qb7 {[%clk 0:00:19]}  Rc2 {[%clk 0:00:29]} 31. Rf1 {[%clk 0:00:19]}  Qxb2 {[%clk 0:00:23]} 32. Qxa6 {[%clk 0:00:18]}  b4 {[%clk 0:00:23]} 33. Qa8+ {[%clk 0:00:17]}  Kg7 {[%clk 0:00:24]} 34. Qe4 {[%clk 0:00:17]}  Re2 {[%clk 0:00:20]} 35. Qc4 {[%clk 0:00:16]}  Rc2 {[%clk 0:00:19]} 36. Qe4 {[%clk 0:00:14]}  Qc3 {[%clk 0:00:19]} 37. Re1 {[%clk 0:00:12]}  Rxa2 {[%clk 0:00:18]} 38. Qe5+ {[%clk 0:00:07]}  Qxe5 {[%clk 0:00:17]} 39. Rxe5 {[%clk 0:00:08]}  b3 {[%clk 0:00:14]} 40. Rb5 {[%clk 0:00:08]}  Rb2 {[%clk 0:00:12]} 41. Kh2 {[%clk 0:00:08]}  Kf6 {[%clk 0:00:09]} 42. f3 {[%clk 0:00:09]}  h4 {[%clk 0:00:09]} 43. Rb4 {[%clk 0:00:08]}  g5 {[%clk 0:00:10]} 44. Rb6+ {[%clk 0:00:07]}  Kg7 {[%clk 0:00:09]} 45. Rb5 {[%clk 0:00:07]}  f6 {[%clk 0:00:09]} 46. Kg1 {[%clk 0:00:07]}  Rb1+ {[%clk 0:00:09]} 47. Kf2 {[%clk 0:00:08]}  b2 {[%clk 0:00:09]} 48. Rb4 {[%clk 0:00:05]}  Kg6 {[%clk 0:00:09]} 49. f4 {[%clk 0:00:06]}  gxf4 {[%clk 0:00:09]} 50. Rb5 {[%clk 0:00:02]}  f3 {[%clk 0:00:09]} 0-1


[Site "https://www.chess.com"]

[Event "Titled Tuesday Blitz March 22 Early 2022"]
[White "Grieve, Harry"]
[Black "Krysa, Leandro"]
[WhiteFideId "426520"]
[BlackFideId "116807"]
[WhiteElo "2294"]
[BlackElo "2490"]
[Result "0-1"]
[Round "05"]
[TimeControl "180+1"]
[Date "2022.03.22"]
[WhiteClock "0:00:03"]
[BlackClock "0:00:05"]

1. e4 {[%clk 0:02:28]}  e5 {[%clk 0:02:58]} 2. Nf3 {[%clk 0:02:28]}  Nf6 {[%clk 0:02:58]} 3. Nxe5 {[%clk 0:02:20]}  d6 {[%clk 0:02:58]} 4. Nf3 {[%clk 0:02:20]}  Nxe4 {[%clk 0:02:58]} 5. Nc3 {[%clk 0:02:20]}  Nxc3 {[%clk 0:02:56]} 6. dxc3 {[%clk 0:02:21]}  Nc6 {[%clk 0:02:51]} 7. Be3 {[%clk 0:02:13]}  Bf5 {[%clk 0:02:50]} 8. Qd2 {[%clk 0:02:10]}  Be7 {[%clk 0:02:48]} 9. O-O-O {[%clk 0:02:10]}  Qd7 {[%clk 0:02:48]} 10. Be2 {[%clk 0:01:53]}  O-O {[%clk 0:02:41]} 11. h4 {[%clk 0:01:49]}  Rfe8 {[%clk 0:02:33]} 12. h5 {[%clk 0:01:49]}  h6 {[%clk 0:02:31]} 13. Rdg1 {[%clk 0:01:45]}  Ne5 {[%clk 0:02:14]} 14. Nd4 {[%clk 0:01:33]}  Be4 {[%clk 0:01:58]} 15. f3 {[%clk 0:01:23]}  Bh7 {[%clk 0:01:58]} 16. g4 {[%clk 0:01:22]}  c5 {[%clk 0:01:44]} 17. Nb3 {[%clk 0:01:05]}  Qa4 {[%clk 0:01:20]} 18. Kb1 {[%clk 0:00:55]}  Nc4 {[%clk 0:01:13]} 19. Bxc4 {[%clk 0:00:55]}  Qxc4 {[%clk 0:01:14]} 20. g5 {[%clk 0:00:43]}  Bxg5 {[%clk 0:00:58]} 21. Bxg5 {[%clk 0:00:44]}  Re2 {[%clk 0:00:58]} 22. Qxd6 {[%clk 0:00:17]}  hxg5 {[%clk 0:00:51]} 23. Rxg5 {[%clk 0:00:13]}  Rae8 {[%clk 0:00:43]} 24. Qf6 {[%clk 0:00:05]}  Bxc2+ {[%clk 0:00:28]} 25. Ka1 {[%clk 0:00:05]}  Bg6 {[%clk 0:00:12]} 26. Rxg6 {[%clk 0:00:02]}  fxg6 {[%clk 0:00:08]} 27. Qxg6 {[%clk 0:00:01]}  Re1+ {[%clk 0:00:08]} 28. Nc1 {[%clk 0:00:02]}  Qe6 {[%clk 0:00:05]} 29. Rxe1 {[%clk 0:00:01]}  Qxe1 {[%clk 0:00:04]} 30. Qc2 {[%clk 0:00:01]}  Rd8 {[%clk 0:00:03]} 31. a4 {[%clk 0:00:01]}  Qd2 {[%clk 0:00:04]} 32. Qb3+ {[%clk 0:00:01]}  Qd5 {[%clk 0:00:02]} 33. Kb1 {[%clk 0:00:02]}  Kh8 {[%clk 0:00:03]} 34. Qc2 {[%clk 0:00:02]}  Qe5 {[%clk 0:00:03]} 35. Nd3 {[%clk 0:00:02]}  Qf5 {[%clk 0:00:03]} 36. Nf2 {[%clk 0:00:01]}  Qxc2+ {[%clk 0:00:03]} 37. Kxc2 {[%clk 0:00:02]}  Rf8 {[%clk 0:00:03]} 38. Ne4 {[%clk 0:00:02]}  Rxf3 {[%clk 0:00:04]} 39. Nxc5 {[%clk 0:00:02]}  Rh3 {[%clk 0:00:05]} 40. Nxb7 {[%clk 0:00:03]}  Rxh5 {[%clk 0:00:06]} 41. c4 {[%clk 0:00:03]}  g5 {[%clk 0:00:05]} 42. c5 {[%clk 0:00:03]}  Rh6 {[%clk 0:00:05]} 43. b4 {[%clk 0:00:03]}  g4 {[%clk 0:00:06]} 44. b5 {[%clk 0:00:04]}  g3 {[%clk 0:00:06]} 45. c6 {[%clk 0:00:04]}  Rh7 {[%clk 0:00:06]} 46. Nc5 {[%clk 0:00:02]}  g2 {[%clk 0:00:06]} 47. Nd7 {[%clk 0:00:02]}  g1=Q {[%clk 0:00:06]} 48. c7 {[%clk 0:00:03]}  Qh2+ {[%clk 0:00:05]} 0-1


[Site "https://www.chess.com"]